bitfinex-derivatives/quotes_BNBF0:USTF0_20250417
["timestamp","ask_amount","ask_price","bid_price","bid_amount"]
[1744899133623,0.34048928,587.39,586.14,0.3412154]
[1744899133827,0.30209769,587.38,586.14,0.3412154]
[1744899135432,0.531,587.37,586.14,0.3412154]
[1744899135628,0.30209769,587.36,586.15,0.788]
[1744899135830,0.30209769,587.36,586.16,0.34120376]
[1744899136633,0.30209769,587.36,586.17,0.31324314]
[1744899137532,0.531,587.37,586.16,0.34120376]
[1744899150549,0.30210951,587.36,586.17,0.313197]
[1744899150850,0.30210951,587.36,586.18,0.34119212]
[1744899151053,0.30210951,587.36,586.19,0.313197]
[1744899151251,0.30210951,587.36,586.2,0.34118048]
[1744899151449,0.30210951,587.36,586.21,0.313197]
[1744899151645,0.30210951,587.36,586.22,0.34116884]
[1744899151851,0.30210951,587.36,586.23,0.313197]
[1744899152050,0.30210951,587.36,586.24,0.3411572]
[1744899152347,0.30210951,587.36,586.25,0.313197]
[1744899152545,0.30210951,587.36,586.25,0.65434838]
[1744899152750,0.30210951,587.36,586.26,0.313197]
[1744899153747,0.30210951,587.38,586.27,0.564]
[1744899154049,0.30210951,587.38,586.28,0.313197]
[1744899157057,0.491,587.37,586.28,0.313197]
[1744899157253,0.30210951,587.36,586.28,0.313197]
[1744899160349,0.491,587.37,586.27,0.564]
[1744899160554,0.30215582,587.36,586.28,0.31319794]
[1744899162157,0.30215141,587.35,586.29,0.31320203]
[1744899162351,0.30215141,587.36,586.3,0.31320203]
[1744899162554,0.30215141,587.35,586.28,0.31320203]
[1744899162855,0.30215141,587.34,586.29,0.31320203]
[1744899163057,0.30215141,587.36,586.28,0.31320203]
[1744899163252,0.30215141,587.35,586.29,0.31320203]
[1744899163452,0.30215141,587.36,586.28,0.31320203]
[1744899163654,0.30215141,587.35,586.29,0.31320203]
[1744899163855,0.30215141,587.36,586.28,0.31320203]
[1744899164056,0.30215141,587.35,586.27,0.564]
[1744899164355,0.30215141,587.34,586.28,0.31320358]
[1744899164560,0.30215141,587.36,586.28,0.31320358]
[1744899166854,0.30215141,587.36,586.28,0.541]
[1744899167057,0.30214528,587.35,586.28,0.541]
[1744899167252,0.30214528,587.36,586.28,0.541]
[1744899168561,0.491,587.37,586.28,0.541]
[1744899168860,0.3021229,587.36,586.28,0.541]
[1744899169060,0.3021229,587.36,586.28,1.263]
[1744899169261,0.3021229,587.38,586.28,1.263]
[1744899169961,0.34050087,587.37,586.28,1.263]
[1744899170161,0.3021229,587.36,586.28,1.263]
[1744899170360,0.34051247,587.35,586.28,1.263]
[1744899170561,0.3021229,587.34,586.28,1.263]
[1744899170762,0.34052406,587.33,586.28,1.263]
[1744899170964,0.3021229,587.32,586.28,1.263]
[1744899171358,0.34053566,587.31,586.28,1.263]
[1744899171665,0.3021229,587.3,586.28,1.263]
[1744899171861,0.30208328,587.29,586.28,1.263]
[1744899172062,0.30208328,587.3,586.28,1.263]
[1744899172262,0.30208328,587.29,586.28,1.263]
[1744899172560,0.30208328,587.28,586.28,1.964]
[1744899172760,0.30208328,587.3,586.28,1.964]
[1744899174461,0.34054725,587.29,586.28,1.964]
[1744899174665,0.30208328,587.28,586.28,1.964]
[1744899174861,0.64263633,587.28,586.28,1.964]
[1744899175066,0.30208328,587.27,586.28,1.964]
[1744899176666,0.34055305,587.28,586.28,1.964]
[1744899176864,0.3020761,587.27,586.28,1.964]
[1744899181172,0.34055305,587.28,586.28,1.964]
[1744899181469,0.30215682,587.27,586.28,1.964]
[1744899182772,0.30215784,587.26,586.28,1.964]
[1744899182971,0.30215784,587.27,586.28,1.964]
[1744899183170,0.30215784,587.26,586.28,1.964]
[1744899183367,0.30215784,587.27,586.28,1.964]
[1744899183570,0.30215784,587.26,586.28,1.964]
[1744899183771,0.30215784,587.27,586.28,1.964]
[1744899183970,0.30215784,587.26,586.28,1.964]
[1744899184171,0.30215784,587.27,586.28,1.964]
[1744899184371,0.30215784,587.26,586.28,1.964]
[1744899184672,0.30215784,587.25,586.28,1.964]
[1744899184872,0.30215784,587.27,586.28,1.964]
[1744899185070,0.34055305,587.28,586.28,1.964]
[1744899185071,0.30215784,587.26,586.28,1.964]
[1744899185265,0.30215784,587.27,586.28,1.964]
[1744899185470,0.30215784,587.25,586.28,1.964]
[1744899185672,0.30215784,587.24,586.28,1.964]
[1744899185865,0.30215784,587.27,586.28,1.964]
[1744899188469,0.34056465,587.26,586.28,1.964]
[1744899188673,0.30215784,587.25,586.28,1.964]
[1744899188867,1.02315784,587.25,586.28,1.964]
[1744899189070,0.30215784,587.24,586.28,1.964]
[1744899189270,0.721,587.25,586.28,1.964]
[1744899189471,0.30215257,587.24,586.28,1.964]
[1744899192475,0.721,587.25,586.28,1.964]
[1744899192677,0.30216206,587.24,586.28,1.964]
[1744899194169,0.30217406,587.23,586.28,1.964]
[1744899194369,0.30217406,587.24,586.28,1.964]
[1744899194571,0.30217406,587.23,586.28,1.964]
[1744899194769,0.30217406,587.24,586.28,1.964]
[1744899194969,0.30217406,587.23,586.28,1.964]
[1744899195168,0.30217406,587.24,586.28,1.964]
[1744899195774,0.721,587.25,586.28,1.964]
[1744899195975,0.30218225,587.24,586.28,1.964]
[1744899197375,0.721,587.25,586.28,1.964]
[1744899197576,0.30219389,587.23,586.28,1.964]
[1744899197775,0.30219389,587.22,586.28,1.964]
[1744899197976,0.30219389,587.24,586.28,1.964]
[1744899198172,0.64277594,587.23,586.28,1.964]
[1744899198374,0.30219389,587.22,586.28,1.964]
[1744899198973,0.34058205,587.23,586.28,1.964]
[1744899199173,0.30216536,587.22,586.28,1.964]
[1744899199678,0.34059365,587.21,586.28,1.964]
[1744899199879,0.30216536,587.2,586.28,1.964]
[1744899200078,0.34060525,587.19,586.28,1.964]
[1744899200277,0.30216536,587.18,586.28,1.964]
[1744899200778,0.64277641,587.18,586.28,1.964]
[1744899200976,0.30216536,587.17,586.28,1.964]
[1744899204075,0.483,587.16,586.28,1.964]
[1744899204280,0.30216536,587.15,586.28,1.964]
[1744899205683,0.483,587.16,586.28,1.964]
[1744899205684,0.30215002,587.14,586.28,1.964]
[1744899205884,0.30215002,587.15,586.28,1.964]
[1744899206184,0.30215002,587.14,586.28,1.964]
[1744899206386,0.30215002,587.15,586.28,1.964]
[1744899206586,0.30215002,587.14,586.28,1.964]
[1744899206785,0.30215002,587.15,586.28,1.964]
[1744899207084,0.30215002,587.14,586.28,1.964]
[1744899207285,0.30215714,587.13,586.28,1.964]
[1744899207479,0.30215714,587.15,586.28,1.964]
[1744899207681,0.34063426,587.14,586.28,1.964]
[1744899207884,0.30215714,587.13,586.28,1.964]
[1744899208788,0.34063426,587.14,586.28,1.964]
[1744899208985,0.3021394,587.13,586.28,1.964]
[1744899212189,0.30215287,587.12,586.28,1.964]
[1744899212384,0.30215287,587.13,586.28,1.964]
[1744899215791,0.34064586,587.12,586.28,1.964]
[1744899215989,0.30215287,587.11,586.28,1.964]
[1744899216184,0.64280453,587.11,586.28,1.964]
[1744899216391,0.30215287,587.1,586.28,1.964]
[1744899220795,0.34066327,587.09,586.28,1.964]
[1744899221097,0.30215287,587.08,586.28,1.964]
[1744899221296,0.34067487,587.07,586.28,1.964]
[1744899221894,0.59878784,587.06,586.28,1.964]
[1744899222095,0.64271944,587.05,586.28,1.964]
[1744899222296,0.64272524,587.04,586.28,1.964]
[1744899222499,0.64273105,587.03,586.28,1.964]
[1744899222696,0.64273685,587.02,586.28,1.964]
[1744899222892,0.64274265,587.01,586.28,1.964]
[1744899223097,0.3407155,587.0,586.28,1.964]
[1744899223897,0.30203429,586.99,586.28,1.964]
[1744899224097,0.34072711,586.98,586.28,1.964]
[1744899228798,0.30207891,586.97,586.28,1.964]
[1744899228998,0.34073872,586.96,586.28,1.964]
[1744899229195,0.30207891,586.95,586.28,1.964]
[1744899229397,0.34075033,586.94,586.28,1.964]
[1744899229594,0.30207891,586.93,586.28,1.964]
[1744899229798,0.34076194,586.92,586.28,1.964]
[1744899229998,0.30203765,586.91,586.28,1.964]
[1744899230199,0.34077355,586.9,586.28,1.964]
[1744899230395,0.30203765,586.89,586.28,1.964]
[1744899230600,0.34078516,586.88,586.28,1.964]
[1744899230797,0.30203765,586.87,586.28,1.964]
[1744899231102,0.34079678,586.86,586.28,1.964]
[1744899231297,0.30203765,586.85,586.28,1.964]
[1744899231502,0.34080839,586.84,586.28,1.964]
[1744899231696,0.30203765,586.83,586.28,1.964]
[1744899236109,0.34080839,586.84,586.28,1.964]
[1744899236310,0.30209185,586.83,586.28,1.964]
[1744899237914,0.30208437,586.82,586.28,1.964]
[1744899238110,0.30208437,586.83,586.28,1.964]
[1744899238311,0.30208437,586.82,586.28,1.964]
[1744899238513,0.30208437,586.81,586.28,1.964]
[1744899238710,0.30208437,586.83,586.28,1.964]
[1744899238907,0.30208437,586.82,586.28,1.964]
[1744899239212,0.30208437,586.81,586.28,1.964]
[1744899239412,0.30208237,586.8,586.28,1.964]
[1744899239613,0.30208237,586.83,586.28,1.964]
[1744899240814,0.34080839,586.84,586.28,1.964]
[1744899241014,0.30208065,586.83,586.28,1.964]
[1744899242015,0.34080839,586.84,586.28,1.964]
[1744899242213,0.3020775,586.83,586.28,1.964]
[1744899250019,0.34080839,586.84,586.28,1.964]
[1744899250224,0.30208693,586.83,586.28,1.964]
[1744899251526,0.34080839,586.84,586.28,1.964]
[1744899251720,0.30206067,586.83,586.28,1.964]
[1744899253124,0.34080839,586.84,586.28,1.964]
[1744899253322,0.30209107,586.83,586.28,1.964]
[1744899255620,0.79209107,586.83,586.28,1.964]
[1744899255821,0.30209107,586.82,586.28,1.964]
[1744899277238,0.30209263,586.81,586.28,1.964]
[1744899277541,0.30209263,586.82,586.28,1.964]
[1744899277740,0.30209263,586.81,586.28,1.964]
[1744899277938,0.49,586.83,586.28,1.964]
[1744899278137,0.30209294,586.82,586.28,1.964]
[1744899280447,0.49,586.83,586.28,1.964]
[1744899280645,0.30210113,586.82,586.28,1.964]
[1744899281741,0.30210113,586.81,586.28,1.964]
[1744899281943,0.30210113,586.83,586.28,1.964]
[1744899284047,0.85210113,586.83,586.28,1.964]
[1744899284248,0.30210113,586.82,586.28,1.964]
[1744899286750,0.55,586.83,586.28,1.964]
[1744899286944,0.3021903,586.82,586.28,1.964]
[1744899288346,0.55,586.83,586.28,1.964]
[1744899288551,0.3021921,586.82,586.28,1.964]
[1744899296257,0.55,586.83,586.28,1.964]
[1744899296451,0.30224163,586.82,586.28,1.964]
[1744899297255,0.55,586.83,586.28,1.964]
[1744899303967,0.30220723,586.82,586.28,1.964]
[1744899304566,0.55,586.83,586.28,1.964]
[1744899383510,0.30235424,586.82,586.28,1.964]
[1744899383808,0.29679664,586.93,586.28,1.964]
[1744899384010,0.64315309,586.92,586.28,1.964]
[1744899384211,0.64315889,586.91,586.28,1.964]
[1744899384515,0.6431647,586.9,586.28,1.964]
[1744899384711,0.64317051,586.89,586.28,1.964]
[1744899384911,0.64317631,586.88,586.28,1.964]
[1744899385112,0.64318212,586.87,586.28,1.964]
[1744899385309,0.34079097,586.87,586.28,1.964]
[1744899386212,0.775,586.86,586.28,1.964]
[1744899387314,1.11579678,586.86,586.28,1.964]
[1744899387709,0.30233479,586.85,586.28,1.964]
[1744899389109,0.30234225,586.84,586.28,1.964]
[1744899389313,0.30234225,586.85,586.28,1.964]
[1744899389614,0.30234117,586.84,586.28,1.964]
[1744899389908,0.30234117,586.83,586.28,1.964]
[1744899390106,1.11579678,586.86,586.28,1.964]
[1744899390812,0.30236753,586.85,586.28,1.964]
[1744899391009,0.30235943,586.84,586.28,1.964]
[1744899391213,0.3408142,586.83,586.28,1.964]
[1744899391411,0.64317363,586.83,586.28,1.964]
[1744899391612,0.30235943,586.82,586.28,1.964]
[1744899391813,0.34082582,586.81,586.28,1.964]
[1744899392011,0.30235943,586.8,586.28,1.964]
[1744899392216,0.64319105,586.8,586.28,1.964]
[1744899392418,0.30235943,586.79,586.28,1.964]
[1744899392624,0.34084324,586.78,586.28,1.964]
[1744899392819,0.30235943,586.77,586.28,1.964]
[1744899393015,0.34085486,586.76,586.28,1.964]
[1744899393214,0.30235943,586.75,586.28,1.964]
[1744899393418,0.34086648,586.74,586.28,1.964]
[1744899393714,0.30235943,586.73,586.28,1.964]
[1744899393916,0.3408781,586.72,586.28,1.964]
[1744899394224,0.30251187,586.71,585.55,0.29686374]
[1744899394918,0.34088972,586.7,584.91,1.07975686]
[1744899395123,0.30251187,586.69,584.93,0.34192125]
[1744899395422,0.30251187,586.69,584.97,1.07975686]
[1744899395621,0.34088972,586.7,584.99,0.34188618]
[1744899395823,0.30256198,586.69,585.0,0.31358664]
[1744899396024,0.30256198,586.69,585.02,0.34186865]
[1744899396323,0.30256198,586.69,585.03,0.31358664]
[1744899396528,0.30256198,586.69,585.05,0.34185112]
[1744899396726,0.30256198,586.69,585.06,0.31358664]
[1744899396926,0.30256198,586.69,585.08,0.34183359]
[1744899397226,0.30256198,586.69,585.09,0.31358664]
[1744899397426,0.30256198,586.69,585.11,0.34181606]
[1744899397628,0.30256198,586.69,585.12,0.31358664]
[1744899397826,0.30256198,586.69,585.14,0.34179854]
[1744899398026,0.30256198,586.69,585.15,0.31358664]
[1744899398225,0.30256198,586.69,585.17,0.34178102]
[1744899398421,0.30256198,586.69,585.18,0.31358664]
[1744899398626,0.30256198,586.69,585.2,0.34176349]
[1744899398923,0.30256198,586.69,585.21,0.31358664]
[1744899399129,0.30256198,586.69,585.23,0.34174598]
[1744899399322,0.30256198,586.69,585.24,0.31358664]
[1744899399524,0.30256198,586.69,585.26,0.34172846]
[1744899399728,0.30256198,586.69,585.27,0.31358664]
[1744899399928,0.30256198,586.69,585.29,0.34171094]
[1744899400128,0.30256198,586.69,585.3,0.31358664]
[1744899400325,0.30256198,586.69,585.31,0.34169927]
[1744899400529,0.30256198,586.69,585.32,0.31358664]
[1744899400723,0.30256198,586.69,585.33,0.34168759]
[1744899400927,0.30256198,586.69,585.34,0.31358664]
[1744899401128,0.30256198,586.69,585.35,0.34167592]
[1744899401427,0.30256198,586.69,585.36,0.31358664]
[1744899401626,0.34090134,586.68,585.37,0.34166424]
[1744899401830,0.30256198,586.67,585.38,0.31358664]
[1744899402130,0.30256198,586.67,585.39,0.34165257]
[1744899402431,0.30256198,586.67,585.4,0.31358664]
[1744899402632,0.30256198,586.67,585.41,0.3416409]
[1744899402929,0.30256198,586.67,585.42,0.31358664]
[1744899403130,0.30256198,586.67,585.43,0.34162922]
[1744899403429,0.30256198,586.67,585.44,0.31358664]
[1744899403629,0.34090134,586.68,585.45,0.34161755]
[1744899403828,0.30244207,586.67,585.46,0.31359508]
[1744899404025,0.30244207,586.67,585.46,0.6552068]
[1744899404230,0.30244207,586.67,585.47,0.31359508]
[1744899404930,0.34091296,586.66,585.47,0.31359508]
[1744899405132,0.30244207,586.65,585.47,0.31359508]
[1744899405326,0.30243514,586.64,585.46,0.34161172]
[1744899405630,0.30243514,586.63,585.47,0.31360714]
[1744899405827,0.30243514,586.65,585.47,0.31360714]
[1744899406032,0.30243514,586.64,585.47,0.31360714]
[1744899406232,0.30243514,586.63,585.47,0.31360714]
[1744899406535,0.30243514,586.62,585.47,0.31360714]
[1744899407832,0.30243514,586.62,585.47,0.65521302]
[1744899408033,0.30243514,586.62,585.48,0.31360714]
[1744899408437,0.617,586.63,585.47,0.34160588]
[1744899408636,0.30253611,586.62,585.48,0.31359735]
[1744899413238,0.617,586.63,585.47,0.34160588]
[1744899413438,0.30256279,586.62,585.48,0.3135967]
[1744899414839,0.617,586.63,585.47,0.34160588]
[1744899415034,0.30255992,586.62,585.48,0.31359523]
[1744899416439,0.617,586.63,585.47,0.34160588]
[1744899424448,0.30250426,586.62,585.47,0.34160588]
[1744899424649,0.34094202,586.61,585.47,0.34160588]
[1744899424947,0.30250426,586.6,585.47,0.34160588]
[1744899425148,0.34095364,586.59,585.47,0.34160588]
[1744899425348,0.30250426,586.58,585.47,0.34160588]
[1744899425543,0.34096527,586.57,585.47,0.34160588]
[1744899425745,0.30252735,586.56,585.47,0.34160588]
[1744899426547,0.30252735,586.56,585.48,0.808]
[1744899426850,0.34097689,586.55,585.48,0.808]
[1744899427044,0.30252735,586.54,585.48,0.808]
[1744899427448,0.34098852,586.53,585.48,0.808]
[1744899427649,0.30252735,586.52,585.48,0.808]
[1744899427949,0.34100015,586.51,585.48,0.808]
[1744899428150,0.30252735,586.5,585.48,0.808]
[1744899428356,0.34101178,586.49,585.48,0.808]
[1744899428554,0.30252735,586.48,585.48,0.808]
[1744899428748,0.6433801,586.47,585.48,0.808]
[1744899428947,0.64338591,586.46,585.48,0.808]
[1744899429149,0.34102922,586.46,585.48,0.808]
[1744899437056,0.34102922,586.46,585.49,0.552]
[1744899437857,0.602,586.45,585.49,0.552]
[1744899438857,0.30256466,586.44,585.49,0.552]
[1744899444461,0.30241295,586.43,585.49,0.552]
[1744899444662,0.30241295,586.44,585.49,0.552]
[1744899444961,0.30241295,586.43,585.49,0.552]
[1744899445163,0.30241295,586.44,585.49,0.552]
[1744899445355,0.30241295,586.43,585.49,0.552]
[1744899445560,0.30241295,586.44,585.49,0.552]
[1744899445863,0.602,586.45,585.49,0.552]
[1744899445864,0.30241295,586.43,585.5,0.663]
[1744899446063,0.30241295,586.44,585.5,0.663]
[1744899446361,0.30241295,586.43,585.5,0.663]
[1744899446558,0.30241295,586.44,585.5,0.663]
[1744899446862,0.30241295,586.43,585.5,0.663]
[1744899447062,0.30241295,586.44,585.51,0.817]
[1744899447259,0.30241295,586.43,585.51,0.817]
[1744899447459,0.30241295,586.44,585.51,0.817]
[1744899447656,0.30241295,586.42,585.51,0.817]
[1744899447861,0.30241295,586.41,585.51,0.817]
[1744899448162,0.30241295,586.44,585.51,0.817]
[1744899448461,0.30241295,586.43,585.51,0.817]
[1744899448663,0.30241295,586.44,585.51,0.817]
[1744899448860,0.30241295,586.43,585.51,0.817]
[1744899449058,0.30241295,586.42,585.51,0.817]
[1744899449261,0.30241295,586.44,585.51,0.817]
[1744899449464,0.602,586.45,585.51,0.817]
[1744899449664,0.30232438,586.44,585.51,0.817]
[1744899452169,0.30232438,586.44,585.52,0.749]
[1744899452671,0.602,586.45,585.52,0.749]
[1744899452872,0.30224217,586.44,585.52,0.749]
[1744899454271,0.602,586.45,585.52,0.749]
[1744899454473,0.30223605,586.44,585.52,0.749]
[1744899458475,0.602,586.45,585.52,0.749]
[1744899458676,0.30220012,586.44,585.52,0.749]
[1744899459168,0.30220012,586.45,585.52,0.749]
[1744899462577,0.98720012,586.45,585.52,0.749]
[1744899462877,0.30220012,586.44,585.52,0.749]
[1744899463980,0.685,586.45,585.52,0.749]
[1744899471485,0.302297,586.44,585.52,0.749]
[1744899472586,0.302297,586.44,585.52,1.57]
[1744899475793,0.302297,586.44,585.52,2.342]
[1744899476295,0.685,586.45,585.52,2.342]
[1744899476494,0.30230034,586.44,585.52,2.342]
[1744899477795,0.685,586.45,585.52,2.342]
[1744899477993,0.30229796,586.44,585.52,2.342]
[1744899479291,0.30232347,586.43,585.52,2.342]
[1744899479497,0.30233421,586.42,585.52,2.342]
[1744899479696,0.30233421,586.45,585.52,2.342]
[1744899479892,0.30233421,586.44,585.52,2.342]
[1744899480096,0.30233421,586.45,585.52,2.342]
[1744899480798,0.34102922,586.46,585.52,2.342]
[1744899480997,0.30236808,586.45,585.52,2.342]
[1744899482201,0.92736808,586.45,585.52,2.342]
[1744899482393,0.30236808,586.44,585.52,2.342]
[1744899485197,0.625,586.45,585.52,2.342]
[1744899485400,0.30231422,586.44,585.52,2.342]
[1744899486904,0.30246982,586.43,585.52,2.342]
[1744899487102,0.30246982,586.44,585.52,2.342]
[1744899487297,0.30246982,586.43,585.52,2.342]
[1744899487499,0.30246982,586.42,585.52,2.342]
[1744899487702,0.30246982,586.44,585.52,2.342]
[1744899487899,0.30246982,586.43,585.52,2.342]
[1744899488298,0.34105248,586.42,585.52,2.342]
[1744899488500,0.30249423,586.41,585.52,2.342]
[1744899488705,0.34106412,586.4,585.52,2.342]
[1744899488904,0.30249423,586.39,585.52,2.342]
[1744899489207,0.34107575,586.38,585.52,2.342]
[1744899489403,0.30249423,586.37,585.52,2.342]
[1744899489906,0.34107575,586.38,585.52,2.342]
[1744899490306,0.30248214,586.37,585.52,2.342]
[1744899490606,0.34108738,586.36,585.52,2.342]
[1744899490804,0.30248214,586.35,585.52,2.342]
[1744899491205,0.34109902,586.34,585.52,2.342]
[1744899491703,0.30245757,586.33,585.52,2.342]
[1744899491905,0.34111065,586.32,585.52,2.342]
[1744899492109,0.30245757,586.31,585.52,2.342]
[1744899492407,0.34112229,586.3,585.52,2.342]
[1744899499410,0.614,586.29,585.52,2.342]
[1744899499616,0.34113392,586.28,585.52,2.342]
[1744899500908,0.30299834,586.27,585.52,2.342]
[1744899502607,0.30299834,586.25,585.52,2.342]
[1744899503010,0.3411572,586.24,585.52,2.342]
[1744899503306,0.30299834,586.23,585.52,2.342]
[1744899503510,0.34116884,586.22,585.52,2.342]
[1744899503809,0.30299834,586.21,585.52,2.342]
[1744899504010,0.34118048,586.2,585.52,2.342]
[1744899504210,0.30290437,586.19,585.52,2.342]
[1744899504404,0.64409067,586.19,585.52,2.342]
[1744899504609,0.30290437,586.18,585.52,2.342]
[1744899507212,0.3411863,586.19,585.52,2.342]
[1744899507412,0.3031314,586.18,585.52,2.342]
[1744899508813,0.64432352,586.18,585.52,2.342]
[1744899509110,0.64432934,586.17,585.52,2.342]
[1744899509307,0.64433516,586.16,585.52,2.342]
[1744899509510,0.3031314,586.15,585.52,2.342]
[1744899512115,0.30306537,586.14,585.52,2.342]
[1744899512315,0.30306537,586.15,585.52,2.342]
[1744899512516,0.30306537,586.14,585.52,2.342]
[1744899512710,0.30306537,586.15,585.52,2.342]
[1744899514319,0.64427495,586.15,585.52,2.342]
[1744899514513,0.64428077,586.14,585.52,2.342]
[1744899514716,0.30306537,586.13,585.52,2.342]
[1744899514914,0.34122705,586.12,585.52,2.342]
[1744899515116,0.30303121,586.11,585.52,2.342]
[1744899515619,0.34123869,586.1,585.52,1.593]
[1744899515817,0.30303121,586.09,585.52,1.593]
[1744899516017,0.34125034,586.08,585.52,1.593]
[1744899516217,0.30303121,586.07,585.52,1.593]
[1744899516618,0.34125034,586.08,585.52,1.593]
[1744899516812,0.30244859,586.07,585.52,1.593]
[1744899518211,0.34125034,586.08,585.52,1.593]
[1744899518412,0.30237464,586.07,585.52,1.593]
[1744899518913,0.34126198,586.06,585.52,1.593]
[1744899519119,0.30237464,586.05,585.52,1.593]
[1744899519414,0.34127363,586.04,585.52,1.593]
[1744899519713,0.30237464,586.03,585.52,1.593]
[1744899519919,0.64367747,586.02,585.52,1.593]
[1744899520119,0.3412911,586.01,585.52,1.593]
[1744899520319,0.30239219,586.0,585.52,1.593]
[1744899520520,0.34130275,585.99,585.52,1.593]
[1744899520715,0.30239219,585.98,585.52,1.593]
[1744899520917,0.81039219,585.98,585.52,1.593]
[1744899521115,0.30239219,585.97,585.52,1.593]
[1744899521320,0.30239219,585.97,585.52,0.772]
[1744899527627,0.508,585.98,585.52,0.772]
[1744899527821,0.30234914,585.97,585.52,0.772]
[1744899528927,0.508,585.98,585.52,0.772]
[1744899538536,0.30232164,585.97,585.52,0.772]
[1744899538837,0.30232164,585.97,585.51,0.525]
[1744899539237,0.34130275,585.99,585.51,0.525]
[1744899539537,0.30232003,585.98,585.51,0.525]
[1744899540332,0.34130275,585.99,585.51,0.525]
[1744899540535,0.30223702,585.98,585.51,0.525]
[1744899541538,0.34130275,585.99,585.51,0.525]
[1744899541732,0.30215173,585.98,585.51,0.525]
[1744899541930,0.30215173,585.98,585.52,0.742]
[1744899542933,0.83815173,585.98,585.52,0.742]
[1744899543332,0.30215173,585.97,585.52,0.742]
[1744899544739,0.536,585.98,585.52,0.742]
[1744899544935,0.30215829,585.97,585.52,0.742]
[1744899545939,0.536,585.98,585.52,0.742]
[1744899546438,0.3021994,585.97,585.52,0.742]
[1744899549035,0.536,585.98,585.52,0.742]
[1744899549436,0.536,585.98,585.52,1.273]
[1744899549839,0.30218389,585.97,585.52,1.273]
[1744899550142,0.536,585.98,585.52,1.273]
[1744899552748,0.3413144,585.97,585.52,1.273]
[1744899555349,0.3019297,585.96,585.52,1.273]
[1744899556050,0.3413144,585.97,585.52,1.273]
[1744899556251,0.30195004,585.96,585.52,1.273]
[1744899557654,0.3413144,585.97,585.52,1.273]
[1744899557953,0.30194235,585.96,585.52,1.273]
[1744899559252,0.3413144,585.97,585.52,1.273]
[1744899559453,0.30192115,585.96,585.52,1.273]
[1744899560853,0.3413144,585.97,585.52,0.531]
[1744899561154,0.30189568,585.96,585.52,0.531]
[1744899562654,0.30194407,585.95,585.52,0.531]
[1744899562851,0.3413144,585.97,585.52,0.531]
[1744899563153,0.30197923,585.96,585.52,0.531]
[1744899563954,0.3413144,585.97,585.52,0.531]
[1744899567459,0.3413144,585.97,585.5,0.612]
[1744899570263,0.747,585.96,585.5,0.612]
[1744899571564,0.747,585.96,585.5,1.404]
[1744899588973,0.30215127,585.95,585.5,1.404]
[1744899589176,0.747,585.96,585.5,1.404]
[1744899589976,0.30213788,585.95,585.5,1.404]
[1744899590276,0.30213788,585.95,585.5,0.612]
[1744899590576,0.747,585.96,585.5,0.612]
[1744899593877,0.747,585.96,585.5,1.25]
[1744899627511,0.64353375,586.34,585.42,0.775]
[1744899627704,0.64349327,586.33,585.42,0.775]
[1744899627908,0.64349909,586.32,585.42,0.775]
[1744899628110,0.64350491,586.31,585.42,0.775]
[1744899628405,0.34112229,586.3,585.42,0.775]
[1744899628603,0.30246364,586.29,585.42,0.775]
[1744899629210,0.30246364,586.29,585.42,1.348]
[1744899629510,0.30246364,586.29,585.42,1.88]
[1744899629910,0.74,586.28,585.42,1.88]
[1744899630111,0.30246364,586.27,585.42,1.88]
[1744899631809,0.64360338,586.27,585.42,1.88]
[1744899632014,0.30246364,586.26,585.42,1.88]
[1744899633115,0.34113974,586.27,585.42,1.88]
[1744899633313,0.30246609,586.26,585.42,1.88]